bitfinex-derivatives/quotes_SOLF0:USTF0_20241231
["timestamp","ask_amount","ask_price","bid_price","bid_amount"]
[1735667126551,20.16534196,195.25,195.09,23.97994196]
[1735667126751,20.16534196,195.25,195.1,4.24]
[1735667126946,20.16534196,195.22,195.1,4.24]
[1735667127155,4.24,195.21,195.06,4.24]
[1735667127351,4.24,195.21,195.05,53.43150121]
[1735667127552,20.16534196,195.19,195.06,2.5674]
[1735667128051,4.24,195.21,195.04,28.34088318]
[1735667128052,20.16534196,195.16,195.04,28.34088318]
[1735667128247,20.16534196,195.1,195.04,28.34088318]
[1735667128452,4.24,195.09,195.04,25.25778318]
[1735667128655,2.567,195.11,195.05,2.5676]
[1735667128950,5.8506,195.15,194.98,408.73648916]
[1735667128951,5.8506,195.15,195.01,20.16534196]
[1735667129157,5.9782525,195.14,195.1,2.5669]
[1735667129352,2.05463349,195.13,195.04,20.16534196]
[1735667129654,1.28380928,195.12,195.04,22.06524196]
[1735667129855,24.40534196,195.22,195.11,2.5667]
[1735667130056,3.92375043,195.21,195.11,2.5667]
[1735667130258,3.92375043,195.2,195.08,4.24]
[1735667130457,4.24,195.23,195.13,2.5666]
[1735667130660,3.92018227,195.22,195.13,2.5666]
[1735667130856,3.92018227,195.21,195.1,20.16534196]
[1735667131057,1.8537,195.27,195.13,20.16534196]
[1735667131253,3.91909711,195.26,195.16,20.16534196]
[1735667131454,1.28341406,195.25,195.19,2.5657]
[1735667131651,4.24,195.32,195.17,4.24]
[1735667131849,3.91968722,195.31,195.17,4.24]
[1735667132053,3.91968722,195.3,195.17,4.24]
[1735667132255,1.28318686,195.29,195.17,24.40534196]
[1735667132456,20.16534196,195.34,195.17,24.40534196]
[1735667132655,3.91931206,195.33,195.17,24.40534196]
[1735667132856,3.91931206,195.32,195.17,24.40534196]
[1735667133059,2.5644,195.3,195.17,24.40534196]
[1735667133256,1.2828856,195.29,195.17,24.40534196]
[1735667133558,3.8262,195.36,195.2,20.16534196]
[1735667133859,3.91871502,195.35,195.2,20.16534196]
[1735667134054,1.28266754,195.34,195.2,20.16534196]
[1735667134253,1.28266754,195.33,195.2,20.16534196]
[1735667134556,2.5643,195.31,195.25,2.5649]
[1735667135455,2.5645,195.29,195.24,4.24]
[1735667135657,3.8262,195.36,195.2,20.16534196]
[1735667135859,3.91709034,195.35,195.21,4.16]
[1735667136059,2.5644,195.3,195.24,2.565]
[1735667136259,3.8262,195.36,195.23,20.16534196]
[1735667136459,3.91768149,195.35,195.26,20.16534196]
[1735667136661,2.0348,195.39,195.31,2.5642]
[1735667136957,1.28238482,195.38,195.27,4.16]
[1735667137255,1.28238568,195.37,195.27,4.16]
[1735667137454,1.28239978,195.36,195.27,4.16]
[1735667137653,1.9763,195.38,195.27,4.16]
[1735667137853,1.28248418,195.37,195.27,4.16]
[1735667138058,1.9763,195.38,195.27,6.7246]
[1735667138059,2.564,195.33,195.27,6.7246]
[1735667138855,3.8393,195.38,195.27,4.16]
[1735667139156,3.91778004,195.37,195.24,3.7925]
[1735667139354,3.91778004,195.36,195.22,4.16]
[1735667139555,2.5646,195.29,195.23,2.5651]
[1735667139754,24.32534196,195.37,195.22,4.16]
[1735667139956,3.91826835,195.36,195.22,4.16]
[1735667140159,3.91826835,195.35,195.22,4.16]
[1735667140354,3.91826835,195.34,195.22,4.16]
[1735667140558,3.91826835,195.33,195.17,20.16534196]
[1735667140755,3.91826835,195.32,195.18,4.16]
[1735667140957,3.91826835,195.31,195.18,4.16]
[1735667141159,1.28286297,195.3,195.18,4.16]
[1735667141360,24.32534196,195.36,195.2,20.16534196]
[1735667141560,2.5641,195.32,195.24,2.5651]
[1735667141859,1.28278947,195.31,195.17,20.16534196]
[1735667142061,2.5653,195.23,195.14,26.03674196]
[1735667142266,20.16534196,195.27,195.14,5.8714]
[1735667142456,3.26771688,195.26,195.14,5.8714]
[1735667142657,20.16534196,195.24,195.13,2.5666]
[1735667142860,1.28332575,195.23,195.08,11.24522079]
[1735667143056,20.16534196,195.21,195.07,5.9332]
[1735667143263,2.5665,195.14,195.07,10.0932]
[1735667143460,24.32534196,195.21,195.07,10.0932]
[1735667143664,2.5668,195.12,195.07,2.5674]
[1735667143856,20.16534196,195.18,195.03,4.16]
[1735667144163,1.28388597,195.17,195.03,4.16]
[1735667144365,2.5665,195.14,195.08,2.5672]
[1735667144565,20.16534196,195.18,195.08,2.5672]
[1735667144763,3.91361207,195.17,195.04,4.16]
[1735667144965,2.5664,195.15,195.09,2.567]
[1735667145165,20.16534196,195.18,195.09,2.567]
[1735667145365,1.28380682,195.17,195.09,2.567]
[1735667145665,2.5663,195.16,195.09,2.567]
[1735667145859,20.16534196,195.18,195.1,2.5669]
[1735667146059,20.16534196,195.21,195.05,20.16534196]
[1735667146261,2.5655,195.21,195.11,2.5667]
[1735667146562,2.5655,195.21,195.11,4.16]
[1735667146765,2.5655,195.21,195.14,2.5664]
[1735667146963,2.5655,195.21,195.11,4.16]
[1735667147365,4.0524,195.25,195.14,2.5664]
[1735667147668,4.0524,195.25,195.11,4.16]
[1735667147870,1.2833886,195.24,195.11,4.16]
[1735667148168,4.0524,195.25,195.11,24.32534196]
[1735667148362,2.0402,195.25,195.12,3.8539]
[1735667148569,1.9846,195.26,195.12,3.8539]
[1735667148570,1.9846,195.26,195.12,5.8662]
[1735667148967,1.28332178,195.25,195.13,4.16]
[1735667149160,1.28332178,195.24,195.13,4.16]
[1735667149365,2.566,195.18,195.13,6.7265]
[1735667149863,20.16534196,195.24,195.09,4.16]
[1735667150066,10.09194185,195.23,195.09,4.16]
[1735667150368,1.28366119,195.22,195.06,1.9316]
[1735667150666,24.0747426,195.21,195.07,4.16]
[1735667150865,1.28366119,195.2,195.07,4.16]
[1735667151268,2.5665,195.14,195.09,2.567]
[1735667152167,2.5665,195.14,195.1,2.5669]
[1735667152369,2.5663,195.16,195.1,2.5669]
[1735667152563,6.1821,195.23,195.07,4.16]
[1735667152763,1.28361168,195.22,195.08,20.16534196]
[1735667152959,2.5658,195.2,195.08,20.16534196]
[1735667153165,6.1821,195.23,195.08,20.16534196]
[1735667153365,1.2836133,195.22,195.11,2.5667]
[1735667153563,1.2836133,195.21,195.08,20.16534196]
[1735667153763,2.0221,195.23,195.13,2.5666]
[1735667153964,2.566,195.18,195.07,4.16]
[1735667154165,20.16534196,195.21,195.07,4.16]
[1735667154466,1.28367106,195.2,195.1,2.5668]
[1735667154667,2.5663,195.15,195.1,2.5668]
[1735667154969,2.5663,195.15,195.1,2.567]
[1735667155668,20.16534196,195.21,195.08,4.16]
[1735667155872,20.16534196,195.18,195.08,4.16]
[1735667156059,5.90031285,195.17,195.08,4.16]
[1735667156264,2.5668,195.11,195.08,4.16]
[1735667156563,1.9895,195.17,195.04,6.1686]
[1735667156768,20.16534196,195.14,194.99,22.18364196]
[1735667156966,20.16534196,195.11,195.01,2.568]
[1735667157169,3.91318031,195.1,194.97,6.0263]
[1735667157360,3.91318031,195.09,194.97,1.8663]
[1735667157567,1.28394298,195.08,194.98,4.16]
[1735667157763,1.8576,195.13,194.98,4.16]
[1735667157966,2.567,195.1,194.99,20.16534196]
[1735667158562,2.567,195.1,195.06,2.5675]
[1735667158960,2.5671,195.09,195.03,2.5679]
[1735667159268,2.5671,195.09,194.99,20.16534196]
[1735667159660,2.5671,195.09,195.04,2.5676]
[1735667160171,2.5674,195.07,194.99,20.16534196]
[1735667160370,1.8576,195.13,194.97,1.8663]
[1735667160567,20.16534196,195.11,194.98,4.16]
[1735667160765,2.5676,195.06,194.98,4.16]
[1735667161081,20.16534196,195.11,194.98,4.16]
[1735667161267,1.28425378,195.1,194.98,4.16]
[1735667161567,1.28425378,195.09,194.98,4.16]
[1735667161766,3.91685972,195.08,194.97,6.0263]
[1735667161965,1.28425378,195.07,194.97,6.0263]
[1735667162164,2.5677,195.05,194.97,6.0263]
[1735667162365,1.28425378,195.04,194.97,1.8663]
[1735667162573,20.16534196,195.11,194.99,2.5684]
[1735667162867,1.8576,195.13,194.89,56.68176639]
[1735667162868,20.16534196,195.07,194.92,4.16]
[1735667163078,2.5686,194.98,194.94,2.5691]
[1735667163274,2.0315,195.06,194.92,4.16]
[1735667163461,5.79649993,195.05,194.92,4.16]
[1735667163763,3.91899993,195.04,194.92,4.16]
[1735667163965,3.91899993,195.03,194.92,4.16]
[1735667164171,3.91899993,195.02,194.92,4.16]
[1735667164373,1.28471144,195.01,194.92,4.16]
[1735667164670,1.28471144,195.0,194.92,4.16]
[1735667164971,1.28471144,194.99,194.92,4.16]
[1735667165171,1.9135,195.04,194.92,4.16]
[1735667165469,1.8775,195.05,194.92,4.16]
[1735667165470,1.28476089,195.03,194.92,20.16534196]
[1735667165671,2.5683,195.0,194.95,2.5689]
[1735667165871,20.16534196,195.04,194.9,4.0792]
[1735667166067,3.91287655,195.03,194.91,4.04]
[1735667166271,20.16534196,195.04,194.91,4.04]
[1735667166272,2.5688,194.97,194.92,2.5692]
[1735667166868,2.5688,194.97,194.93,2.5692]
[1735667167064,20.16534196,195.01,194.9,4.0792]
[1735667167375,20.16534196,194.98,194.86,4.04]
[1735667167571,1.28493867,194.97,194.86,4.04]
[1735667167772,1.28493867,194.96,194.86,24.20534196]
[1735667167967,20.16534196,195.04,194.87,1.902]
[1735667168269,3.90949878,195.03,194.89,20.16534196]
[1735667168588,1.2849935,195.02,195.0,2.5682]
[1735667168766,1.8775,195.05,195.0,2.5682]
[1735667168968,2.5679,195.03,194.95,4.04]
[1735667169172,1.8775,195.05,194.95,4.04]
[1735667169368,1.28455766,195.04,194.95,4.04]
[1735667169770,1.28455766,195.04,194.99,2.5684]
[1735667169971,1.28455766,195.04,194.95,4.04]
[1735667170372,1.28455766,195.04,194.95,2.5689]
[1735667170572,1.28455766,195.04,194.93,4.04]
[1735667170769,1.28455766,195.04,194.97,2.5686]
[1735667170976,1.28455766,195.04,194.93,4.04]
[1735667171176,2.0315,195.06,194.94,4.0652]
[1735667171476,1.28455913,195.05,194.98,2.5685]
[1735667171666,1.28456621,195.04,194.98,2.5685]
[1735667171866,2.568,195.03,194.98,2.5685]
[1735667172069,2.568,195.03,194.94,4.0652]
[1735667172277,2.5677,195.05,194.94,4.0652]
[1735667172680,2.5677,195.05,195.01,2.5681]
[1735667172970,20.16534196,195.1,194.99,4.04]
[1735667173177,2.5675,195.07,194.99,4.04]
[1735667173378,2.0239,195.11,194.99,4.04]
[1735667173576,2.5677,195.05,194.99,4.04]
[1735667173772,2.0239,195.11,194.99,4.04]
[1735667174075,5.9857,195.12,194.99,4.04]
[1735667174076,1.28432962,195.1,194.99,4.04]
[1735667174274,2.021,195.16,195.01,20.16534196]
[1735667174586,3.85045906,195.15,195.04,20.16534196]
[1735667174776,1.28415906,195.14,195.05,9.7272]
[1735667174974,1.28415906,195.13,195.05,4.4663]
[1735667175170,2.5672,195.09,194.99,4.04]
[1735667175366,24.21964196,195.12,194.97,4.04]
[1735667175575,3.91005955,195.11,194.97,4.04]
[1735667175779,2.5672,195.09,194.97,4.04]
[1735667175968,24.21964196,195.12,194.97,4.04]
[1735667176170,1.28423332,195.11,195.01,2.568]
[1735667176480,1.28423332,195.1,195.01,20.16534196]
[1735667176676,22.19864196,195.18,195.01,20.16534196]
[1735667176979,3.90973582,195.16,195.01,20.16534196]
[1735667177278,1.28410681,195.15,195.01,20.16534196]
[1735667177481,1.28410681,195.14,195.08,20.16534196]
[1735667177774,7.08522079,195.24,195.09,9.7584]
[1735667177975,1.28343003,195.23,195.16,20.16534196]
[1735667178179,7.08522079,195.27,195.22,2.5654]
[1735667178376,7.08522079,195.27,195.17,4.04]
[1735667178791,7.08522079,195.27,195.25,2.565]
[1735667178975,7.08522079,195.27,195.23,4.04]
[1735667179172,138.40264958,195.46,195.23,4.04]
[1735667179372,1.28283687,195.34,195.23,4.04]
[1735667179677,1.28283687,195.33,195.23,4.04]
[1735667179879,20.16534196,195.37,195.23,4.04]
[1735667180076,1.28268752,195.35,195.21,5.8325]
[1735667180277,36.71221763,195.34,195.22,4.04]
[1735667180483,1.28268752,195.33,195.22,4.04]
[1735667180985,1.28277831,195.32,195.22,4.04]
[1735667181276,6.4371,195.36,195.22,4.04]
[1735667181478,3.8734,195.36,195.22,4.04]
[1735667181776,2.5644,195.3,195.23,2.5651]
[1735667181981,1.9556,195.35,195.22,4.04]
[1735667182184,1.28265979,195.34,195.22,4.04]
[1735667182381,1.9556,195.35,195.23,4.04]
[1735667182980,2.5637,195.35,195.29,2.5643]
[1735667183181,32.79997506,195.4,195.21,38.63247506]
[1735667183384,3.91338879,195.39,195.22,4.04]
[1735667183577,3.91345538,195.38,195.24,2.5651]
[1735667183774,32.79997506,195.36,195.21,38.63247506]
[1735667183974,32.79997506,195.33,195.17,53.36]
[1735667184179,7.75715538,195.35,195.17,2.5659]
[1735667184180,2.5654,195.22,195.17,2.5659]
[1735667184385,2.5654,195.22,195.16,4.04]
[1735667184583,32.79997506,195.27,195.16,4.04]
[1735667184881,2.566,195.18,195.16,4.04]
[1735667185086,1.9259,195.26,195.16,4.04]
[1735667185278,3.91324533,195.25,195.16,4.04]
[1735667185479,36.83997506,195.3,195.16,4.04]
[1735667185679,2.5652,195.24,195.19,2.5658]
[1735667186790,32.79997506,195.3,195.16,4.04]
[1735667187084,3.91458517,195.29,195.14,32.79997506]
[1735667187279,32.79997506,195.27,195.14,4.04]
[1735667187483,3.91458517,195.26,195.14,4.04]
[1735667187683,3.91458517,195.25,195.14,4.04]
[1735667187884,3.91458517,195.24,195.14,6.6064]
[1735667188087,1.28309291,195.23,195.14,4.04]
[1735667188290,1.28309291,195.22,195.14,4.04]
[1735667188587,3.84879291,195.21,195.15,2.5663]
[1735667188784,1.993,195.25,195.14,4.04]
[1735667188985,1.28337821,195.24,195.14,4.04]
[1735667189182,1.28338371,195.23,195.14,4.04]
[1735667189399,32.79997506,195.3,195.14,36.83997506]
[1735667189585,3.91451711,195.29,195.14,36.83997506]
[1735667189787,1.28314376,195.28,195.14,36.83997506]
[1735667189990,1.28314376,195.27,195.22,2.5654]
[1735667190185,1.28314376,195.26,195.22,2.5654]
[1735667190390,1.28313661,195.25,195.22,2.5654]
[1735667190686,3.8413,195.31,195.22,2.5654]
[1735667190882,3.91415115,195.3,195.22,2.5654]
[1735667191092,1.28298039,195.29,195.22,2.5654]
[1735667191407,3.8413,195.31,195.2,4.04]
[1735667191408,2.5649,195.26,195.2,4.04]
[1735667191687,3.8413,195.31,195.2,4.04]
[1735667191987,2.5648,195.27,195.2,4.04]
[1735667192284,3.8413,195.31,195.2,4.04]
[1735667192493,2.0125,195.32,195.21,32.79997506]
[1735667192494,2.5645,195.29,195.21,32.79997506]
[1735667192684,1.28303375,195.28,195.2,4.04]
[1735667192880,2.5648,195.27,195.2,4.04]
[1735667193384,2.0125,195.32,195.2,4.04]
[1735667193589,3.84716912,195.31,195.2,4.04]
[1735667193793,2.0125,195.32,195.21,2.0084]
[1735667193986,1.28280474,195.31,195.24,2.5651]
[1735667194185,1.28280474,195.3,195.19,4.04]
[1735667194491,1.28280474,195.29,195.19,4.04]
[1735667194689,2.565,195.26,195.19,4.04]
[1735667194891,1.8677,195.3,195.19,4.04]
[1735667195093,2.0125,195.32,195.19,4.04]
[1735667195384,2.5646,195.29,195.19,4.04]
[1735667195583,2.0125,195.32,195.19,4.04]
[1735667195783,2.5644,195.3,195.19,4.04]
[1735667195986,2.0125,195.32,195.19,4.04]
[1735667195987,4.0,195.36,195.19,4.04]
[1735667196183,1.8677,195.37,195.28,2.5646]
[1735667196184,1.28264665,195.35,195.28,2.5646]
[1735667196383,2.5639,195.34,195.26,4.0]
[1735667196583,1.8677,195.37,195.26,4.0]
[1735667196784,1.28243509,195.36,195.26,4.0]
[1735667196984,1.8677,195.37,195.26,4.0]
[1735667197192,1.28249514,195.36,195.23,1.8505]
[1735667197493,2.5652,195.24,195.2,6.5656]
[1735667197792,32.79997506,195.32,195.2,4.0]
[1735667197992,1.28284397,195.31,195.2,4.0]
[1735667198186,4.0,195.33,195.2,4.0]
[1735667198187,2.5645,195.29,195.2,4.0]
[1735667198390,4.0,195.33,195.2,4.0]
[1735667198589,2.5645,195.29,195.21,2.5655]
[1735667198794,4.0,195.33,195.21,2.5655]
[1735667199092,1.28301217,195.32,195.21,2.5655]
[1735667199290,1.28301217,195.31,195.2,4.0]
[1735667199491,4.0,195.33,195.2,4.0]
[1735667199692,1.28288754,195.32,195.2,4.0]
[1735667199892,4.0,195.33,195.25,2.565]
[1735667200094,1.28283979,195.32,195.2,4.0]
[1735667200284,32.79997506,195.35,195.2,4.0]
[1735667200285,2.5646,195.28,195.2,4.0]
[1735667200486,4.0,195.34,195.22,2.5653]
[1735667200690,32.79997506,195.31,195.2,4.0]
[1735667200896,32.79997506,195.28,195.14,1.8505]
[1735667201093,32.79997506,195.25,195.13,2.5665]
[1735667201305,32.79997506,195.22,195.09,4.0]
[1735667201497,2.5666,195.13,195.07,6.015]
[1735667201797,32.79997506,195.19,195.07,6.015]
[1735667202090,32.79997506,195.19,195.07,4.0]
[1735667202091,1.28373408,195.18,195.07,4.0]
[1735667202300,1.28373408,195.17,195.07,4.0]
[1735667202493,1.28373408,195.17,195.09,2.5671]
[1735667202693,2.5666,195.13,195.07,4.0]
[1735667203497,2.5665,195.14,195.09,2.5671]
[1735667203794,1.9116,195.18,195.04,53.34]
[1735667204096,2.567,195.1,195.05,4.0]
[1735667204502,32.86542859,195.15,194.98,32.86542859]
[1735667204698,1.28414396,195.14,194.99,4.0]
[1735667204900,32.86542859,195.15,194.99,4.0]
[1735667204901,1.28414396,195.13,194.99,4.0]
[1735667205099,34.14954348,195.12,194.99,4.0]
[1735667205400,3.90706799,195.11,194.99,4.0]
[1735667205593,2.5678,195.04,194.99,4.0]
[1735667205792,32.86542859,195.09,194.99,4.0]
[1735667205993,3.26934676,195.08,194.99,4.0]
[1735667206200,1.28441411,195.07,194.99,4.0]
[1735667206399,1.28447102,195.06,194.96,4.0]
[1735667206600,1.985,195.08,194.96,4.0]
[1735667206901,1.28453311,195.07,194.98,2.5685]
[1735667207091,1.28453311,195.06,194.98,2.5685]
[1735667207297,1.28453311,195.06,194.96,4.0]
[1735667207298,1.985,195.08,194.96,4.0]
[1735667208199,4.5524,195.08,195.02,2.568]
[1735667208401,1.985,195.08,194.96,4.0]
[1735667208804,2.5675,195.07,194.96,4.0]
[1735667209396,1.985,195.08,194.96,4.0]
[1735667209397,2.5675,195.06,195.0,2.5682]
[1735667209597,2.5675,195.06,194.96,4.0]
[1735667210214,2.5675,195.06,195.01,2.5681]
[1735667212005,2.5677,195.05,194.99,2.5683]
[1735667212308,32.86542859,195.09,194.96,4.0]
[1735667212503,1.28449236,195.08,194.96,4.0]
[1735667212700,2.568,195.02,194.97,2.5686]
[1735667213099,2.568,195.02,194.85,5.03590246]
[1735667213100,32.86542859,195.03,194.87,32.86542859]
[1735667213307,32.86542859,195.03,194.89,4.0]
[1735667213499,5.28481895,195.02,194.89,4.0]
[1735667213698,1.28481895,195.01,194.89,4.0]
[1735667213896,2.569,194.95,194.9,2.5695]
[1735667214402,4.0,195.02,194.9,2.5695]
[1735667214709,2.569,194.95,194.89,2.5697]
[1735667215304,2.569,194.95,194.9,2.5696]
[1735667215701,2.569,194.95,194.87,4.0]
[1735667215907,2.569,194.95,194.88,2.5697]
[1735667216106,2.569,194.95,194.86,5.8702]
[1735667216802,2.569,194.95,194.87,4.0]
[1735667217407,32.86542859,194.97,194.85,5.03590246]
[1735667217610,34.82292859,194.94,194.8,4.0]
[1735667217907,34.82292859,194.94,194.84,2.5704]
[1735667218107,2.5696,194.9,194.8,4.0]
[1735667218300,34.82292859,194.94,194.8,4.0]
[1735667218708,2.5696,194.9,194.85,2.5702]
[1735667219104,34.82292859,194.94,194.85,2.5702]
[1735667219608,34.82292859,194.94,194.79,5.8587]
[1735667219609,2.5701,194.86,194.81,2.5707]
[1735667219804,2.5701,194.86,194.79,5.9416]
[1735667220002,32.86542859,194.91,194.79,5.9416]
[1735667220406,34.82292859,194.94,194.79,5.9416]
[1735667220602,2.5698,194.89,194.84,2.5704]
[1735667220808,34.82292859,194.94,194.84,2.5704]
[1735667221007,34.82292859,194.94,194.79,5.9416]
[1735667221008,32.86542859,194.91,194.79,5.9416]
[1735667221204,1.28560003,194.9,194.74,4.0]
[1735667221407,32.86542859,194.88,194.72,2.0323]
[1735667221607,2.5709,194.81,194.76,2.5714]
[1735667222607,2.5709,194.8,194.75,2.5716]
[1735667223108,2.0212,194.84,194.72,6.0323]
[1735667223412,2.0212,194.84,194.73,32.86542859]
[1735667223607,2.0212,194.84,194.7,32.86542859]
[1735667223819,2.5712,194.79,194.73,2.5718]
[1735667224015,32.86542859,194.83,194.67,4.0]
[1735667224211,20.29824876,194.79,194.66,4.0]
[1735667224423,2.5718,194.74,194.64,4.0]
[1735667224717,1.892,194.78,194.65,3.84]
[1735667225317,2.5713,194.77,194.71,2.572]
[1735667225516,1.892,194.78,194.65,3.84]
[1735667226021,1.892,194.78,194.6,53.54929524]
[1735667226216,1.892,194.78,194.61,3.84]
[1735667226518,2.5723,194.7,194.64,2.5729]
[1735667226711,1.892,194.78,194.61,3.84]
[1735667227111,2.572,194.72,194.6,73.847544]
[1735667227312,1.892,194.78,194.6,73.847544]
[1735667227313,1.892,194.78,194.67,20.29824876]
[1735667227616,2.5709,194.81,194.68,3.84]
[1735667227919,2.0212,194.84,194.7,20.29824876]
[1735667228121,2.0212,194.84,194.73,2.5717]
[1735667228317,22.31944876,194.84,194.7,3.84]
[1735667228918,3.84,194.83,194.7,3.84]
[1735667229317,3.84,194.83,194.69,3.84]
[1735667229714,3.84,194.83,194.71,2.5721]
[1735667229918,3.84,194.83,194.69,3.84]
[1735667230115,3.84,194.83,194.68,3.84]
[1735667230321,2.5716,194.75,194.7,2.5721]
[1735667230519,3.84,194.83,194.68,3.84]
[1735667230821,3.84,194.83,194.7,20.29824876]
[1735667231020,2.5709,194.81,194.75,2.5715]
[1735667231219,2.0212,194.84,194.75,3.84]
[1735667232019,2.0212,194.84,194.73,3.84]
[1735667232317,2.5712,194.78,194.73,3.84]
[1735667232521,22.31944876,194.84,194.71,1.9262]
[1735667232822,2.5712,194.79,194.73,2.5717]
[1735667233018,22.31944876,194.84,194.7,3.84]
[1735667233421,2.571,194.8,194.74,2.5717]
[1735667233816,2.0212,194.84,194.7,24.13824876]
[1735667234019,2.5706,194.83,194.78,2.5712]
[1735667234519,2.5706,194.83,194.78,2.5711]
[1735667234719,24.13824876,194.93,194.76,24.13824876]
[1735667235019,3.84,194.95,194.79,20.29824876]
[1735667235223,2.5696,194.9,194.86,2.5701]
[1735667235624,3.84,194.95,194.84,3.84]
[1735667235823,20.29824876,194.96,194.84,3.84]
[1735667236321,5.8034,194.97,194.84,3.84]
[1735667237022,24.13824876,195.05,194.88,20.29824876]
[1735667237224,1.9936,195.04,194.89,0.94432685]
[1735667237426,1.9936,195.04,194.9,4.78432685]
[1735667237625,1.9936,195.04,194.9,3.84]
[1735667237826,2.5684,195.0,194.9,6.4096]
[1735667238029,20.29824876,195.01,194.85,20.29824876]
[1735667238223,20.29824876,194.98,194.86,3.84]
[1735667238419,2.5689,194.96,194.9,2.5696]
[1735667238818,20.29824876,195.01,194.86,3.84]
[1735667239029,20.29824876,194.98,194.86,3.84]
[1735667239324,20.29824876,195.01,194.86,3.84]
[1735667239525,1.28508188,195.0,194.86,3.84]
[1735667239726,1.28508188,194.99,194.86,3.84]
[1735667239926,2.5683,195.0,194.92,2.5693]
[1735667240126,22.29184876,195.04,194.92,6.4093]
[1735667240327,1.28497791,195.03,194.92,3.84]
[1735667240528,3.85307791,195.02,194.97,2.5687]
[1735667240828,3.7655,195.06,194.98,3.84]
[1735667241028,3.7655,195.06,194.99,3.84]
[1735667241327,1.28461335,195.05,194.96,3.84]
[1735667241528,1.28461335,195.04,194.96,3.84]
[1735667241931,1.9342,195.05,194.96,3.84]
[1735667242131,1.28476311,195.04,194.96,3.84]
[1735667242326,2.5688,194.96,194.92,3.84]
[1735667242531,20.29824876,195.04,194.92,3.84]
[1735667242727,1.28491077,195.03,194.92,3.84]
[1735667243029,1.9342,195.05,194.92,3.84]
[1735667243224,1.28466635,195.04,194.92,3.84]
[1735667243431,2.5683,195.01,194.95,2.5689]
[1735667243625,1.28471812,195.0,194.91,1.8676]
[1735667243826,1.28471812,194.99,194.91,3.84]
[1735667244026,20.29824876,195.04,194.91,3.84]
[1735667244325,1.28467556,195.03,194.91,3.84]
[1735667244531,1.28467556,195.02,194.91,3.84]
[1735667244826,1.28467556,195.01,194.91,3.84]
[1735667245033,2.5689,194.96,194.91,2.5694]
[1735667245233,20.29824876,195.04,194.9,3.84]
[1735667245531,2.5687,194.97,194.93,2.5692]
[1735667245831,1.28490726,194.96,194.9,3.84]
[1735667246029,1.28490726,194.95,194.9,3.84]
[1735667246227,1.28490726,194.94,194.9,3.84]
[1735667246431,1.28490726,194.93,194.9,3.84]
[1735667246631,1.28490726,194.92,194.9,3.84]
[1735667246933,20.29824876,195.04,194.9,3.84]
[1735667247132,2.5686,194.98,194.9,3.84]
[1735667247333,3.91182638,194.97,194.94,2.5691]
[1735667247533,1.28484757,194.96,194.9,3.84]
[1735667247736,1.28484757,194.95,194.9,3.84]
[1735667248032,2.5686,194.98,194.9,3.84]
[1735667248231,1.28461728,194.97,194.9,3.84]
[1735667248424,1.28461728,194.96,194.95,2.5689]
[1735667248628,1.28461728,194.96,194.92,3.84]
[1735667248831,2.5691,194.94,194.89,3.84]
[1735667249032,1.28461728,194.93,194.84,1.9798]
[1735667249242,1.28461728,194.92,194.84,1.9798]
[1735667249532,3.85450511,194.91,194.85,3.84]
[1735667249722,1.28500511,194.9,194.85,3.84]
[1735667249927,1.28500511,194.89,194.85,3.84]
[1735667250137,1.28500511,194.88,194.87,2.5699]
[1735667250334,1.28500511,194.97,194.87,2.5699]
[1735667250540,20.29824876,194.98,194.85,3.84]